fUST/lending_fUST_20250309
["ID","MTS","AMOUNT","RATE_DAILY","PERIOD"]
[355750513,1741531768009,2491.95278363,0.00027993,2]
[355750514,1741531768046,500.0,0.00027993,2]
[355750515,1741531768076,2491.95278363,0.00027993,2]
[355750516,1741531768116,500.0,0.00027993,2]
[355750517,1741531768153,2491.95278363,0.00027993,2]
[355750518,1741531768194,500.0,0.00027993,2]
[355750519,1741531768223,2491.95278363,0.00027993,2]
[355750520,1741531768258,500.0,0.00027993,2]
[355750521,1741531768289,2491.95278363,0.00027993,2]
[355750522,1741531768319,2491.95278363,0.00027993,2]
[355750523,1741531768354,500.0,0.00027993,2]
[355750524,1741531769729,506.19862437,0.00027973,5]
[355750525,1741531770333,-13261.12493543,0.00035125,2]
[355750526,1741531770356,-929.80164619,0.00035125,2]
[355750527,1741531770379,-823.0,0.0003516,2]
[355750528,1741531770404,-628.43540584,0.00035367,2]
[355750529,1741531770426,-14526.47627662,0.00035616,11]
[355750530,1741531771497,246.61278489,0.00029089,2]
[355750582,1741531832828,-21964.37898418,0.00035616,11]
[355750584,1741531832838,-10000.0,0.00035635,2]
[355750586,1741531832849,-506.79767543,0.00035787,5]
[355750588,1741531832859,-1000.0,0.00035787,5]
[355750590,1741531832869,-334.351798,0.0003589,2]
[355750592,1741531832879,-263.833,0.00035999,5]
[355750594,1741531832889,-168.0,0.00038125,2]
[355750595,1741531832899,-21381.37917501,0.00039223,3]
[355750596,1741531832911,-9207.48205639,0.00039223,3]
[355750597,1741531832921,-929.80164619,0.00039223,3]
[355750598,1741531832930,-367.15,0.00039999,2]
[355750599,1741531832945,-3218.006187,0.00040017,2]
[355750600,1741531832956,-1000.0,0.00041095,2]
[355750601,1741531832966,-163.65767108,0.00041096,2]
[355750602,1741531832976,-168.0,0.00041125,2]
[355750603,1741531832987,-334.351798,0.00041211,2]
[355750604,1741531832997,-583.125444,0.00041219,2]
[355750605,1741531833007,-367.15,0.00041369,30]
[355750606,1741531833017,-215.66,0.0004198,10]
[355750607,1741531833029,-179.72,0.0004198,10]
[355750608,1741531833039,-898.62,0.0004198,10]
[355750609,1741531833050,-61177.7224629,0.0004199,3]
[355750610,1741531833060,-1859.60329238,0.0004199,3]
[355750611,1741531833070,-11315.83364496,0.00042,2]
[355750624,1741531838623,-304.7249366,0.00039222,15]
[355750625,1741531838633,-377.31101128,0.00039222,15]
[355750626,1741531838654,-122.68898872,0.00039222,15]
[355750627,1741531838664,-356.48685369,0.00039222,15]
[355750628,1741531838674,-68863.42467901,0.00042,2]
[355750629,1741531838684,-420.78,0.00042,30]
[355750630,1741531838694,-713.45,0.00042,30]
[355750631,1741531838704,-151.0,0.00042,120]
[355750632,1741531838714,-367.15,0.00042739,30]
[355750633,1741531838723,-151.0,0.00042739,30]
[355750634,1741531838733,-263.833,0.00042854,14]
[355750635,1741531838742,-163.98833329,0.000431,2]
[355750636,1741531838752,-500.0,0.00043414,10]
[355750637,1741531838762,-351.0440067,0.00043414,10]
[355750638,1741531838771,-500.0,0.00043414,10]
[355750639,1741531838782,-500.0,0.00043414,2]
[355750640,1741531838792,-500.0,0.00043414,10]
[355750641,1741531838801,-500.0,0.00043414,3]
[355750642,1741531838811,-500.0,0.00043414,10]
[355750643,1741531838820,-500.0,0.00043414,10]
[355750644,1741531838830,-500.0,0.00043414,10]
[355750645,1741531838841,-501.91450557,0.00043414,5]
[355750646,1741531838850,-500.0,0.00043414,10]
[355750647,1741531838860,-500.0,0.00043414,10]
[355750648,1741531838870,-500.0,0.00043414,2]
[355750649,1741531838880,-502.41335846,0.00043414,10]
[355750650,1741531838889,-1500.0,0.00043471,10]
[355750651,1741531838899,-500.0,0.000435,10]
[355750652,1741531838908,-504.86089005,0.000435,10]
[355750653,1741531838918,-500.0,0.000435,2]
[355750654,1741531838928,-179.56903432,0.00043518,29]
[355750655,1741531838937,-255.42534548,0.00043562,120]
[355750656,1741531838947,-500.0,0.00043835,120]
[355750657,1741531838957,-367.15,0.00044109,30]
[355750658,1741531838967,-500.0,0.00044383,120]
[355750659,1741531838978,-156.98452372,0.00044466,120]
[355750660,1741531838988,-30588.8612314,0.0004448,3]
[355750661,1741531838998,-929.80164619,0.0004448,3]
[355750662,1741531839008,-151.0,0.0004449,120]
[355750663,1741531839018,-151.0,0.0004449,120]
[355750664,1741531839027,-176.055301,0.0004449,120]
[355750665,1741531839037,-293.433076,0.0004449,120]
[355750666,1741531839047,-235.776839,0.0004449,120]
[355750667,1741531839056,-235.776839,0.0004449,120]
[355750668,1741531839066,-308.805312,0.0004449,120]
[355750669,1741531839076,-309.979766,0.0004449,120]
[355750670,1741531839086,-309.979766,0.0004449,120]
[355750671,1741531839095,-159.723316,0.0004449,120]
[355750672,1741531839105,-160.737339,0.0004449,120]
[355750673,1741531839115,-159.723316,0.0004449,120]
[355750674,1741531839125,-193.000567,0.0004449,120]
[355750675,1741531839136,-151.0,0.0004449,120]
[355750676,1741531839149,-151.0,0.0004449,120]
[355750677,1741531839159,-208.027464,0.0004449,120]
[355750678,1741531839168,-151.0,0.0004449,120]
[355750679,1741531839181,-208.027464,0.0004449,120]
[355750680,1741531839190,-179.738701,0.0004449,120]
[355750681,1741531839200,-194.09227,0.0004449,120]
[355750682,1741531839210,-179.738701,0.0004449,120]
[355750683,1741531839221,-153.289761,0.0004449,120]
[355750684,1741531839231,-194.09227,0.0004449,120]
[355750685,1741531839241,-153.289761,0.0004449,120]
[355750686,1741531839251,-200.0,0.000445,5]
[355750687,1741531839260,-500.0,0.000445,10]
[355750688,1741531839270,-159.723316,0.000445,120]
[355750689,1741531839279,-500.0,0.000445,10]
[355750690,1741531839289,-159.723316,0.000445,120]
[355750691,1741531839299,-500.0,0.000445,10]
[355750692,1741531839308,-420.78,0.000445,30]
[355750693,1741531839318,-151.0,0.000448,120]
[355750694,1741531839328,-151.0,0.000448,120]
[355750695,1741531839337,-713.45,0.000448,30]
[355750696,1741531839347,-500.0,0.00044931,120]
[355750697,1741531839356,-156.98452372,0.00044932,120]
[355750698,1741531839366,-500.0,0.00045,5]
[355750699,1741531839376,-230.0,0.00045,90]
[355750700,1741531839386,-200.0,0.00045,2]
[355750701,1741531839395,-156.98452372,0.00045397,120]
[355750702,1741531839409,-367.15,0.00045479,30]
[355750703,1741531839419,-500.0,0.00045479,120]
[355750704,1741531839429,-151.0,0.00045516,30]
[355750705,1741531839438,-1728.997288,0.00045601,4]
[355750706,1741531839448,-230.0,0.00045685,90]
[355750707,1741531839458,-1500.0,0.00045806,10]
[355750708,1741531839467,-15555.67399697,0.00045816,2]
[355750709,1741531839477,-160.0,0.00045816,2]
[355750710,1741531839488,-156.98452372,0.0004589,120]
[355750711,1741531839498,-151.0,0.00045975,120]
[355750712,1741531839507,-929.80164619,0.0004598,4]
[355750713,1741531839517,-151.0,0.0004599,120]
[355750714,1741531839527,-18693.07838681,0.00046,8]
[355750715,1741531839537,-1000.0,0.00046,120]
[355750716,1741531839546,-308.805312,0.00046,120]
[355750717,1741531839556,-309.979766,0.00046,120]
[355750718,1741531839565,-309.979766,0.00046,120]
[355750719,1741531839575,-151.0,0.00046,120]
[355750720,1741531839584,-151.0,0.00046,120]
[355750721,1741531839593,-208.027464,0.00046,120]
[355750722,1741531839603,-151.0,0.00046,120]
[355750723,1741531839612,-208.027464,0.00046,120]
[355750724,1741531839622,-179.738701,0.00046,120]
[355750725,1741531839631,-194.09227,0.00046,120]
[355750726,1741531839641,-179.738701,0.00046,120]
[355750727,1741531839650,-153.289761,0.00046,120]
[355750728,1741531839660,-194.09227,0.00046,120]
[355750729,1741531839669,-153.289761,0.00046,120]
[355750730,1741531839679,-6151.18359661,0.00046,120]
[355750731,1741531839689,-151.0,0.00046,120]
[355750732,1741531839698,-500.0,0.00046027,120]
[355750733,1741531839708,-440.44038402,0.00046076,2]
[355750734,1741531839718,-2000.0,0.000461,120]
[355750735,1741531839727,-2000.0,0.000462,120]
[355750736,1741531839737,-2000.0,0.000463,120]
[355750737,1741531839747,-420.78,0.000463,30]
[355750738,1741531839757,-156.98452372,0.00046356,120]
[355750739,1741531839766,-151.0,0.00046362,120]
[355750740,1741531839776,-151.0,0.00046362,120]
[355750741,1741531839786,-235.776839,0.00046362,120]
[355750742,1741531839795,-235.776839,0.00046362,120]
[355750743,1741531839805,-151.0,0.00046362,120]
[355750744,1741531839815,-159.723316,0.00046362,120]
[355750745,1741531839825,-159.723316,0.00046362,120]
[355750746,1741531839834,-929.80164619,0.0004638,4]
[355750747,1741531839844,-151.0,0.0004639,30]
[355750748,1741531839854,-4649.00823095,0.0004639,4]
[355750749,1741531839863,-26689.08653,0.00046398,14]
[355750750,1741531839873,-764.75,0.00046399,7]
[355750751,1741531839882,-764.75,0.00046399,7]
[355750752,1741531839892,-764.75,0.00046399,7]
[355750753,1741531839901,-764.75,0.00046399,7]
[355750754,1741531839911,-764.75,0.00046399,7]
[355750755,1741531840013,-764.75,0.00046399,7]
[355750756,1741531840023,-764.75,0.00046399,7]
[355750757,1741531840032,-764.75,0.00046399,7]
[355750758,1741531840042,-764.75,0.00046399,7]
[355750759,1741531840051,-764.75,0.00046399,7]
[355750760,1741531840061,-27276.72569323,0.000464,46]
[355750761,1741531840070,-2000.0,0.000464,120]
[355750762,1741531840080,-222000.0,0.000464,2]
[355750763,1741531840089,-297.421832,0.000464,120]
[355750764,1741531840098,-151.0,0.000464,120]
[355750765,1741531840108,-151.0,0.000464,120]
[355750766,1741531840118,-151.0,0.000464,120]
[355750769,1741531840127,-151.0,0.000464,120]
[355750770,1741531840142,-329.364709,0.000464,120]
[355750771,1741531840152,-151.0,0.000464,120]
[355750772,1741531840162,-329.364709,0.000464,120]
[355750773,1741531840171,-151.0,0.000464,120]
[355750774,1741531840181,-151.0,0.000464,120]
[355750775,1741531840190,-151.0,0.000464,120]
[355750776,1741531840200,-151.0,0.000464,90]
[355750777,1741531840212,-151.0,0.000464,120]
[355750778,1741531840224,-151.0,0.000464,120]
[355750779,1741531840234,-235.776839,0.000464,120]
[355750780,1741531840244,-235.776839,0.000464,120]
[355750781,1741531840254,-151.0,0.000464,120]
[355750782,1741531840264,-308.805312,0.000464,120]
[355750783,1741531840274,-309.979766,0.000464,120]
[355750784,1741531840284,-309.979766,0.000464,120]
[355750785,1741531840293,-203.255584,0.000464,30]
[355750786,1741531840303,-159.723316,0.000464,120]
[355750787,1741531840313,-159.723316,0.000464,120]
[355750788,1741531840322,-151.0,0.000464,120]
[355750789,1741531840332,-151.0,0.000464,120]
[355750790,1741531840342,-208.027464,0.000464,120]
[355750791,1741531840352,-213.129408,0.000464,120]
[355750792,1741531840362,-208.027464,0.000464,120]
[355750793,1741531840372,-179.738701,0.000464,120]
[355750794,1741531840381,-194.09227,0.000464,120]
[355750795,1741531840391,-179.738701,0.000464,120]
[355750796,1741531840400,-153.289761,0.000464,120]
[355750797,1741531840410,-194.09227,0.000464,120]
[355750798,1741531840420,-151.0,0.000464,120]
[355750799,1741531840430,-153.289761,0.000464,120]
[355750800,1741531840440,-151.0,0.000464,120]
[355750801,1741531840451,-2000.0,0.0004645,120]
[355750803,1741531840462,-328.84025274,0.0004646,120]
[355750805,1741531840472,-5031.93533348,0.00046465,120]
[355750807,1741531840483,-463.23634732,0.00046473,10]
[355750809,1741531840493,-504.4406362,0.00046473,10]
[355750811,1741531840506,-500.0,0.00046473,10]
[355750813,1741531840516,-501.21363941,0.00046473,10]
[355750815,1741531840526,-500.0,0.00046473,10]
[355750817,1741531840537,-500.0,0.00046473,10]
[355750819,1741531840547,-500.0,0.00046473,10]
[355750821,1741531840557,-500.0,0.00046473,10]
[355750823,1741531840567,-500.0,0.00046473,10]
[355750824,1741531840577,-500.0,0.00046473,10]
[355750826,1741531840587,-504.9735165,0.00046473,10]
[355750827,1741531840597,-504.04743059,0.00046473,2]
[355750828,1741531840607,-369.02588663,0.00046473,10]
[355750830,1741531840616,-500.0,0.00046473,10]
[355750831,1741531840626,-500.0,0.00046473,10]
[355750832,1741531840636,-500.0,0.00046473,10]
[355750833,1741531840645,-353.79636251,0.00046473,10]
[355750834,1741531840655,-500.0,0.00046473,10]
[355750835,1741531840665,-515.72089983,0.00046473,10]
[355750836,1741531840675,-500.0,0.00046473,10]
[355750837,1741531840685,-500.0,0.00046473,10]
[355750838,1741531840695,-500.0,0.00046473,10]
[355750839,1741531840704,-500.0,0.00046473,10]
[355750840,1741531840714,-500.0,0.00046473,10]
[355750841,1741531840724,-500.0,0.00046473,10]
[355750842,1741531840734,-500.0,0.00046473,10]
[355750843,1741531840744,-152.32538602,0.00046473,10]
[355750844,1741531840754,-500.0,0.00046473,2]
[355750845,1741531840764,-500.0,0.00046473,10]
[355750846,1741531840773,-604.79249635,0.00046473,10]
[355750847,1741531840783,-500.0,0.00046473,10]
[355750848,1741531840793,-508.58978956,0.00046473,10]
[355750849,1741531840803,-9896.85641027,0.00046475,2]
[355750850,1741531840812,-3000.0,0.00046475,2]
[355750851,1741531840822,-1000.0,0.00046475,60]
[355750852,1741531840832,-3719.20658476,0.0004649,4]
[355750853,1741531840842,-235.08155043,0.00046499,30]
[355750854,1741531840852,-3904.08577216,0.000465,46]
[355750855,1741531840861,-26922.21399197,0.000465,30]
[355750856,1741531840871,-399850.44453868,0.000465,30]
[355750857,1741531840881,-151.0,0.000465,120]
[355750858,1741531840890,-151.0,0.000465,120]
[355750859,1741531840900,-151.0,0.000465,120]
[355750860,1741531840910,-151.0,0.000465,120]
[355750861,1741531840920,-151.0,0.000465,120]
[355750862,1741531840930,-151.0,0.000465,120]
[355750863,1741531840940,-151.0,0.000465,90]
[355750864,1741531840950,-248.297628,0.000465,120]
[355750865,1741531840961,-151.0,0.000465,120]
[355750866,1741531840971,-235.776839,0.000465,120]
[355750867,1741531840980,-235.776839,0.000465,120]
[355750868,1741531840990,-151.0,0.000465,120]
[355750869,1741531841000,-308.805312,0.000465,120]
[355750870,1741531841009,-308.805312,0.000465,120]
[355750871,1741531841019,-309.979766,0.000465,120]
[355750872,1741531841028,-309.979766,0.000465,120]
[355750873,1741531841040,-159.723316,0.000465,120]
[355750874,1741531841050,-159.723316,0.000465,120]
[355750875,1741531841060,-151.0,0.000465,120]
[355750876,1741531841070,-208.027464,0.000465,120]
[355750877,1741531841080,-208.027464,0.000465,120]
[355750878,1741531841090,-179.738701,0.000465,120]
[355750879,1741531841099,-194.09227,0.000465,120]
[355750880,1741531841109,-179.738701,0.000465,120]
[355750881,1741531841118,-153.289761,0.000465,120]
[355750882,1741531841127,-194.09227,0.000465,120]
[355750883,1741531841138,-151.0,0.000465,120]
[355750884,1741531841150,-153.289761,0.000465,120]
[355750885,1741531841160,-713.45,0.000465,30]
[355750886,1741531841170,-200.303231,0.000465,120]
[355750887,1741531841180,-151.0,0.00046531,2]
[355750888,1741531841190,-334.351798,0.00046532,2]
[355750889,1741531841200,-158.328284,0.00046545,120]
[355750890,1741531841211,-329.364709,0.00046545,120]
[355750891,1741531841223,-329.364709,0.00046545,120]
[355750892,1741531841233,-151.0,0.00046565,120]
[355750893,1741531841243,-151.0,0.00046565,120]
[355750894,1741531841254,-329.364709,0.00046565,120]
[355750895,1741531841265,-151.0,0.00046565,120]
[355750896,1741531841275,-329.364709,0.00046565,120]
[355750897,1741531841285,-151.0,0.00046565,120]
[355750898,1741531841295,-151.0,0.00046565,90]
[355750899,1741531841305,-150.0,0.00046573,3]
[355750900,1741531841314,-500.0,0.00046573,10]
[355750901,1741531841324,-10000.0,0.00046575,12]
[355750902,1741531841334,-507.51811636,0.00046575,120]
[355750903,1741531841343,-500.0,0.00046575,120]
[355750904,1741531841353,-500.0,0.00046575,120]
[355750905,1741531841362,-500.0,0.00046575,120]
[355750906,1741531841372,-500.0,0.00046575,120]
[355750907,1741531841382,-500.0,0.00046575,120]
[355750908,1741531841394,-562.73265517,0.00046575,120]
[355750909,1741531841404,-392.09975623,0.00046575,120]
[355750910,1741531841414,-507.94133595,0.00046575,120]
[355750911,1741531841424,-500.0,0.00046575,120]
[355750912,1741531841434,-500.0,0.00046575,120]
[355750913,1741531841444,-500.0,0.00046575,120]
[355750914,1741531841454,-500.0,0.00046575,120]
[355750915,1741531841464,-500.0,0.00046575,120]
[355750916,1741531841474,-500.0,0.00046575,120]
[355750917,1741531841484,-500.0,0.00046575,120]
[355750918,1741531841493,-500.0,0.00046575,120]
[355750919,1741531841502,-500.0,0.00046575,120]
[355750920,1741531841512,-500.0,0.00046575,120]
[355750921,1741531841521,-827.49,0.00046575,120]
[355750922,1741531841531,-500.0,0.00046575,120]
[355750923,1741531841541,-500.0,0.00046575,120]
[355750924,1741531841551,-500.0,0.00046575,120]
[355750925,1741531841560,-500.0,0.00046575,120]
[355750926,1741531841571,-500.0,0.00046575,120]
[355750927,1741531841580,-649.25468459,0.00046575,120]
[355750928,1741531841590,-500.0,0.00046575,120]
[355750929,1741531841688,-500.0,0.00046575,120]
[355750930,1741531841699,-500.0,0.00046575,120]
[355750931,1741531841709,-500.0,0.00046575,120]
[355750932,1741531841718,-793.97,0.00046575,120]
[355750933,1741531841727,-500.0,0.00046575,120]
[355750934,1741531841738,-500.0,0.00046575,120]
[355750935,1741531841747,-500.0,0.00046575,120]
[355750936,1741531841757,-500.0,0.00046575,120]
[355750937,1741531841767,-151.0,0.00046575,120]
[355750938,1741531841777,-151.0,0.00046575,120]
[355750939,1741531841787,-500.0,0.00046575,120]
[355750940,1741531841797,-167.51872754,0.00046575,120]
[355750941,1741531841807,-500.0,0.00046575,2]
[355750942,1741531841817,-500.0,0.00046575,120]
[355750943,1741531841828,-500.0,0.00046575,120]
[355750944,1741531841837,-500.0,0.00046575,120]
[355750945,1741531841847,-500.0,0.00046575,120]
[355750946,1741531841857,-329.364709,0.00046575,120]
[355750947,1741531841868,-329.364709,0.00046575,120]
[355750948,1741531841878,-500.0,0.00046575,120]
[355750949,1741531841889,-201.911793,0.00046575,120]
[355750950,1741531841899,-329.364709,0.00046575,120]
[355750951,1741531841909,-329.364709,0.00046575,120]
[355750952,1741531841919,-500.0,0.00046575,120]
[355750953,1741531841928,-500.0,0.00046575,120]
[355750954,1741531841938,-500.0,0.00046575,120]
[355750955,1741531841948,-500.0,0.00046575,120]
[355750956,1741531841958,-500.0,0.00046575,120]
[355750957,1741531841967,-500.0,0.00046575,120]
[355750958,1741531841977,-151.0,0.00046575,120]
[355750959,1741531841988,-500.0,0.00046575,120]
[355750960,1741531841998,-500.0,0.00046575,120]
[355750961,1741531842008,-241.961391,0.00046575,120]
[355750962,1741531842018,-500.0,0.00046575,120]
[355750963,1741531842028,-500.0,0.00046575,120]
[355750964,1741531842038,-500.0,0.00046575,120]
[355750965,1741531842048,-500.0,0.00046575,120]
[355750966,1741531842058,-151.0,0.00046575,90]
[355750967,1741531842069,-500.0,0.00046575,2]
[355750968,1741531842079,-588.73,0.00046575,120]
[355750969,1741531842088,-500.0,0.00046575,120]
[355750970,1741531842099,-500.0,0.00046575,2]
[355750971,1741531842109,-540.25343236,0.00046575,120]
[355750972,1741531842120,-500.0,0.00046575,120]
[355750973,1741531842130,-500.0,0.00046575,2]
[355750974,1741531842141,-500.0,0.00046575,120]
[355750975,1741531842154,-500.0,0.00046575,120]
[355750976,1741531842164,-500.0,0.00046575,120]
[355750977,1741531842173,-500.0,0.00046575,120]
[355750978,1741531842183,-500.0,0.00046575,120]
[355750979,1741531842194,-500.0,0.00046575,120]
[355750980,1741531842204,-500.0,0.00046575,120]
[355750981,1741531842214,-500.0,0.00046575,120]
[355750982,1741531842225,-500.0,0.00046575,120]
[355750983,1741531842235,-500.0,0.00046575,120]
[355750984,1741531842246,-500.0,0.00046575,120]
[355750985,1741531842256,-500.0,0.00046575,120]
[355750986,1741531842266,-500.0,0.00046575,120]
[355750987,1741531842276,-527.36,0.00046575,120]
[355750988,1741531842285,-500.0,0.00046575,120]
[355750989,1741531842294,-500.0,0.00046575,120]
[355750990,1741531842304,-503.68870789,0.00046575,120]
[355750991,1741531842313,-844.17,0.00046575,120]
[355750992,1741531842323,-500.0,0.00046575,120]
[355750993,1741531842333,-500.0,0.00046575,120]
[355750994,1741531842342,-500.0,0.00046575,120]
[355750995,1741531842352,-500.0,0.00046575,120]
[355750996,1741531842362,-500.0,0.00046575,120]
[355750997,1741531842372,-500.0,0.00046575,120]
[355750998,1741531842381,-500.0,0.00046575,120]
[355750999,1741531842391,-500.0,0.00046575,120]
[355751000,1741531842401,-500.0,0.00046575,120]
[355751001,1741531842410,-1000.0,0.00046575,5]
[355751002,1741531842419,-500.0,0.00046575,120]
[355751003,1741531842430,-500.0,0.00046575,120]
[355751004,1741531842440,-500.0,0.00046575,120]
[355751005,1741531842449,-536.86735511,0.00046575,120]
[355751006,1741531842459,-500.0,0.00046575,120]
[355751007,1741531842468,-752.37,0.00046575,120]
[355751008,1741531842477,-500.0,0.00046575,120]
[355751009,1741531842487,-500.0,0.00046575,15]
[355751010,1741531842497,-500.0,0.00046575,120]
[355751011,1741531842506,-500.0,0.00046575,120]
[355751012,1741531842516,-500.0,0.00046575,120]
[355751013,1741531842526,-500.0,0.00046575,120]
[355751014,1741531842535,-151.0,0.00046575,120]
[355751015,1741531842545,-760.69,0.00046575,120]
[355751016,1741531842554,-151.0,0.00046575,120]
[355751017,1741531842564,-502.97102885,0.00046575,120]
[355751018,1741531842573,-3717.7,0.00046575,120]
[355751019,1741531842583,-500.0,0.00046575,120]
[355751020,1741531842592,-500.0,0.00046575,120]
[355751021,1741531842602,-500.0,0.00046575,120]
[355751022,1741531842612,-500.0,0.00046575,120]
[355751023,1741531842621,-500.0,0.00046575,120]
[355751024,1741531842630,-235.776839,0.00046575,120]
[355751025,1741531842640,-500.0,0.00046575,120]
[355751026,1741531842649,-235.776839,0.00046575,120]
[355751027,1741531842659,-1627.71,0.00046575,120]
[355751028,1741531842668,-500.0,0.00046575,120]
[355751029,1741531842678,-500.0,0.00046575,120]
[355751030,1741531842687,-500.0,0.00046575,120]
[355751031,1741531842697,-500.0,0.00046575,120]
[355751032,1741531842706,-151.0,0.00046575,120]
[355751033,1741531842715,-151.0,0.00046575,120]
[355751034,1741531842725,-500.0,0.00046575,2]
[355751035,1741531842734,-500.0,0.00046575,120]
[355751036,1741531842744,-500.0,0.00046575,120]
[355751037,1741531842754,-500.0,0.00046575,120]
[355751038,1741531842763,-500.0,0.00046575,120]
[355751039,1741531842773,-500.0,0.00046575,120]
[355751040,1741531842783,-500.0,0.00046575,120]
[355751041,1741531842792,-500.0,0.00046575,120]
[355751042,1741531842801,-308.805312,0.00046575,120]
[355751043,1741531842811,-308.805312,0.00046575,120]
[355751044,1741531842820,-500.0,0.00046575,120]
[355751045,1741531842830,-308.805312,0.00046575,120]
[355751046,1741531842841,-500.0,0.00046575,120]
[355751047,1741531842851,-308.805312,0.00046575,120]
[355751048,1741531842860,-500.0,0.00046575,120]
[355751049,1741531842870,-500.0,0.00046575,120]
[355751050,1741531842879,-500.0,0.00046575,120]
[355751051,1741531842889,-309.979766,0.00046575,120]
[355751052,1741531842898,-500.0,0.00046575,120]
[355751053,1741531842908,-309.979766,0.00046575,120]
[355751054,1741531842917,-500.0,0.00046575,120]
[355751055,1741531842927,-500.0,0.00046575,120]
[355751056,1741531842936,-500.0,0.00046575,120]
[355751057,1741531842946,-500.0,0.00046575,120]
[355751058,1741531842955,-500.0,0.00046575,120]
[355751059,1741531842965,-500.0,0.00046575,120]
[355751060,1741531842975,-500.0,0.00046575,120]
[355751061,1741531842985,-500.0,0.00046575,120]
[355751062,1741531842994,-500.0,0.00046575,120]
[355751063,1741531843004,-500.0,0.00046575,120]
[355751064,1741531843014,-500.0,0.00046575,120]
[355751065,1741531843023,-500.0,0.00046575,120]
[355751066,1741531843033,-309.979766,0.00046575,120]
[355751067,1741531843042,-500.0,0.00046575,120]
[355751068,1741531843052,-309.979766,0.00046575,120]
[355751070,1741531843062,-500.0,0.00046575,120]
[355751072,1741531843071,-500.0,0.00046575,120]
[355751074,1741531843081,-500.0,0.00046575,120]
[355751075,1741531843090,-1086.99,0.00046575,120]
[355751076,1741531843100,-500.0,0.00046575,120]
[355751077,1741531843109,-500.0,0.00046575,120]
[355751079,1741531843119,-500.0,0.00046575,120]
[355751087,1741531843219,-500.0,0.00046575,120]
[355751088,1741531843229,-500.0,0.00046575,120]
[355751090,1741531843247,-500.0,0.00046575,120]
[355751091,1741531843257,-500.0,0.00046575,120]
[355751092,1741531843268,-512.77604628,0.00046575,120]
[355751093,1741531843278,-500.0,0.00046575,120]
[355751094,1741531843288,-500.0,0.00046575,120]
[355751095,1741531843298,-159.723316,0.00046575,120]
[355751096,1741531843307,-159.723316,0.00046575,120]
[355751097,1741531843317,-500.0,0.00046575,120]
[355751098,1741531843327,-500.0,0.00046575,120]
[355751099,1741531843337,-500.0,0.00046575,120]
[355751100,1741531843347,-159.723316,0.00046575,120]
[355751101,1741531843356,-159.723316,0.00046575,120]
[355751102,1741531843366,-500.0,0.00046575,120]
[355751103,1741531843375,-500.0,0.00046575,120]
[355751104,1741531843385,-635.56539295,0.00046575,120]
[355751105,1741531843394,-500.0,0.00046575,120]
[355751107,1741531843404,-500.0,0.00046575,120]
[355751108,1741531843413,-500.0,0.00046575,120]
[355751110,1741531843422,-500.0,0.00046575,120]